bitfinex/quotes_ETHUSD_20250415
["timestamp","ask_amount","ask_price","bid_price","bid_amount"]
[1744746610138,6.23768932,1603.2,1602.8,10.54223128]
[1744746610472,6.23796046,1603.1,1602.8,4.30315682]
[1744746610672,6.23845889,1603.0,1602.6,10.54287651]
[1744746611037,12.47713095,1603.0,1602.6,10.54287651]
[1744746611375,6.23870075,1602.9,1602.6,10.54287651]
[1744746611581,6.23836715,1603.0,1602.6,16.78260161]
[1744746611743,6.23871588,1602.9,1602.6,10.54287651]
[1744746612047,6.23912729,1602.8,1602.4,11.36671299]
[1744746612247,6.23869237,1602.9,1602.2,5.10855682]
[1744746612449,6.24038393,1602.5,1602.1,6.2617362]
[1744746612749,6.24032336,1602.5,1602.1,6.26163499]
[1744746612964,6.24052529,1602.5,1602.1,6.26163499]
[1744746613156,6.240377,1602.5,1602.2,10.54441096]
[1744746613739,6.240377,1602.5,1602.2,16.78568867]
[1744746613945,6.240377,1602.5,1602.2,10.54441096]
[1744746614882,6.24098903,1602.4,1602.2,4.30315682]
[1744746615079,6.24098903,1602.4,1602.1,0.02]
[1744746615080,6.24141805,1602.2,1602.1,0.02]
[1744746616361,6.24120722,1602.3,1602.1,0.02]
[1744746616564,0.7719,1602.8,1602.3,6.24088996]
[1744746616759,0.7719,1602.8,1602.4,6.24062067]
[1744746616760,6.23972495,1602.7,1602.4,6.24062067]
[1744746616961,6.23968755,1602.7,1602.4,16.78425615]
[1744746617161,6.23968755,1602.7,1602.4,10.54363548]
[1744746617356,5.699,1602.9,1602.4,4.30315682]
[1744746617558,11.93778716,1602.9,1602.6,4.30315682]
[1744746617786,5.699,1602.9,1602.7,6.23928743]
[1744746617988,12.47647992,1603.1,1602.7,12.47858405]
[1744746618153,6.5321,1603.5,1603.1,6.23752557]
[1744746618483,7.06875028,1603.7,1603.3,6.23692632]
[1744746618650,13.30461998,1603.7,1603.3,6.23692632]
[1744746618849,7.06875407,1603.7,1603.3,6.23701197]
[1744746619280,5.39186771,1603.8,1603.4,4.30315682]
[1744746619451,6.63614488,1603.8,1603.5,10.53933736]
[1744746619793,6.63614488,1603.8,1603.5,4.30315682]
[1744746619981,12.47172152,1603.7,1603.3,17.32718876]
[1744746620288,6.23581974,1603.7,1603.3,19.35990764]
[1744746620586,19.10679867,1603.8,1603.5,4.30315682]
[1744746620793,6.63614488,1603.8,1603.6,0.55]
[1744746620955,6.63614488,1603.8,1603.6,6.78593802]
[1744746621160,6.63614488,1603.8,1603.7,10.53873704]
[1744746621360,6.63614488,1603.8,1603.7,12.82120455]
[1744746621557,6.63614488,1603.8,1603.7,21.74620455]
[1744746621963,7.88042204,1603.9,1603.8,9.78519142]
[1744746622295,7.88042204,1603.9,1603.8,10.61059142]
[1744746622495,11.01193549,1604.0,1603.8,10.61059142]
[1744746622496,11.01193549,1604.0,1603.9,9.78480266]
[1744746622698,9.12469921,1604.2,1604.1,6.23402531]
[1744746622901,9.12469921,1604.2,1604.1,10.53718213]
[1744746623200,6.23169772,1604.7,1604.3,0.7798]
[1744746623410,12.46362952,1604.7,1604.3,11.31601558]
[1744746623597,9.23213263,1604.6,1604.3,11.31601558]
[1744746623794,6.23253073,1604.5,1604.3,4.30315682]
[1744746624097,12.46446856,1604.6,1604.3,4.30315682]
[1744746624285,6.23213263,1604.6,1604.3,4.30315682]
[1744746624495,6.23285963,1604.4,1604.2,0.55]
[1744746624696,6.23285963,1604.4,1604.1,10.22815682]
[1744746624999,6.23285963,1604.4,1604.1,4.30315682]
[1744746625200,6.2336367,1604.2,1604.1,4.30315682]
[1744746625369,6.2336367,1604.2,1603.9,4.30315682]
[1744746625567,6.2342736,1604.1,1603.9,4.30315682]
[1744746625763,6.23441396,1604.0,1603.9,4.30315682]
[1744746626003,12.46920986,1604.0,1603.7,5.11475682]
[1744746626187,12.46920986,1604.0,1603.5,3.0]
[1744746626188,9.7078,1604.1,1603.5,4.30315682]
[1744746626388,9.7078,1604.1,1603.4,0.7598]
[1744746626389,6.23597262,1603.6,1603.2,0.7578]
[1744746626580,12.47328459,1603.5,1603.2,5.06095682]
[1744746626775,6.23523292,1603.8,1603.0,10.22715682]
[1744746626776,6.2371359,1603.3,1603.0,10.22715682]
[1744746626973,6.23753576,1603.2,1603.0,10.22715682]
[1744746627173,12.47463283,1603.3,1603.0,4.30315682]
[1744746627601,6.2371359,1603.3,1603.0,4.30315682]
[1744746627781,12.47449416,1603.3,1603.0,4.8167325]
[1744746627985,12.4745378,1603.3,1603.0,4.8167325]
[1744746628181,6.23791404,1603.1,1603.0,4.30315682]
[1744746628386,6.23869237,1602.9,1602.8,4.30315682]
[1744746628586,6.23830318,1603.0,1602.8,4.30315682]
[1744746628784,12.47682474,1603.0,1602.8,4.30315682]
[1744746629109,6.23794057,1603.1,1602.8,5.29886377]
[1744746629408,12.4761182,1603.1,1602.8,5.29886377]
[1744746629608,6.23794057,1603.1,1602.8,5.29886377]
[1744746629817,12.47609596,1603.1,1602.8,5.29886377]
[1744746630224,6.23738243,1603.3,1603.0,4.30315682]
[1744746630397,6.23712793,1603.4,1603.0,4.7334725]
[1744746630602,6.23714394,1603.3,1603.0,4.7334725]
[1744746631339,12.94307799,1603.6,1603.2,4.30315682]
[1744746631493,12.15897799,1603.6,1603.2,4.30315682]
[1744746631848,12.95212971,1603.9,1603.4,6.23656639]
[1744746632124,12.15882971,1603.9,1603.5,0.62365664]
[1744746632326,6.23554607,1603.8,1603.5,0.62365664]
[1744746632497,6.23554607,1603.8,1603.3,9.78702283]
[1744746632696,0.7933,1604.2,1603.6,0.55]
[1744746632909,6.23458605,1604.0,1603.6,0.55]
[1744746633627,3.0,1603.9,1603.6,0.55]
[1744746633843,9.23484095,1603.9,1603.6,0.55]
[1744746633988,3.0,1603.9,1603.6,0.55]
[1744746634919,12.46920078,1604.0,1603.6,0.55]
[1744746635117,6.23458605,1604.0,1603.6,0.55]
[1744746635502,6.23369189,1604.2,1603.8,0.55]
[1744746636132,6.23290502,1604.4,1603.9,0.06233805]
[1744746636429,6.23313686,1604.4,1603.8,0.55]
[1744746636590,6.23349492,1604.3,1603.8,1.60521281]
[1744746636793,6.23349492,1604.3,1603.8,0.55]
[1744746637630,6.23253605,1604.5,1603.8,0.55]
[1744746637838,6.23138407,1604.8,1604.3,0.8252]
[1744746638138,6.23064121,1605.0,1604.4,0.55]
[1744746638300,5.923,1605.1,1604.4,4.31083022]
[1744746638301,6.23091941,1604.9,1604.4,4.31083022]
[1744746638922,12.46205396,1604.9,1604.4,1.31083022]
[1744746639195,6.23236387,1604.6,1604.3,0.8252]
[1744746639397,6.23285963,1604.4,1604.0,0.7925]
[1744746639796,0.7715,1604.8,1604.0,10.02688345]
[1744746640003,6.23202096,1604.7,1604.1,0.55]
[1744746640202,6.23223127,1604.6,1604.1,0.55]
[1744746640538,6.23308954,1604.4,1604.0,0.7925]
[1744746640698,6.23305418,1604.4,1604.1,0.55]
[1744746640899,12.46615336,1604.4,1604.1,0.55]
[1744746641122,6.23336853,1604.3,1604.0,0.7925]
[1744746641743,12.46589207,1604.4,1604.0,0.7925]
[1744746641950,12.46589207,1604.4,1604.0,6.32725]
[1744746642528,6.23186219,1604.7,1604.1,6.84633917]
[1744746642729,12.46377152,1604.7,1604.1,6.78400655]
[1744746642915,6.23186219,1604.7,1604.1,6.78400655]
[1744746643116,6.23186219,1604.7,1604.3,0.55]
[1744746643534,6.23186219,1604.7,1604.4,0.06232058]
[1744746643813,6.23186219,1604.7,1604.4,0.83622058]
[1744746644205,6.23110994,1604.9,1604.5,0.55]
[1744746645026,6.23130928,1604.8,1604.5,0.55]
[1744746645430,6.23108327,1604.9,1604.5,0.55]
[1744746645632,12.46216855,1604.9,1604.5,0.55]
[1744746645838,6.2314236,1604.8,1604.4,0.7739]
[1744746646021,6.23101135,1604.9,1604.5,0.55]
[1744746647381,6.23056094,1605.0,1604.5,0.55]
[1744746647516,6.23056094,1605.0,1604.6,0.06231128]
[1744746648324,6.23021537,1605.1,1604.6,0.06231128]
[1744746648528,6.23070699,1605.0,1604.6,0.06231128]
[1744746649480,6.23025646,1605.1,1604.7,0.55]
[1744746649616,49.4098,1605.2,1604.6,0.55]
[1744746649821,12.14951012,1605.3,1604.8,0.55]
[1744746650130,5.92,1605.3,1604.9,0.06230003]
[1744746650331,6.24905646,1605.4,1605.1,0.772]
[1744746650534,0.02,1605.4,1605.1,0.772]
[1744746652751,0.02,1605.4,1605.2,3.0]
[1744746653974,0.02,1605.4,1605.2,0.55]
[1744746655193,6.2490563,1605.4,1605.1,0.772]
[1744746655688,0.02,1605.4,1605.1,0.772]
[1744746656059,6.24904712,1605.4,1605.1,0.772]
[1744746656258,12.47838667,1605.4,1605.1,0.772]
[1744746656564,6.22948913,1605.3,1605.1,0.772]
[1744746656993,6.22948439,1605.3,1605.1,0.772]
[1744746657281,6.24904712,1605.4,1605.1,0.772]
[1744746657484,6.22937835,1605.3,1605.1,0.772]
[1744746657792,12.47837622,1605.4,1605.2,3.0]
[1744746657989,6.22936522,1605.3,1605.2,3.0]
[1744746659688,12.47823228,1605.4,1605.2,3.0]
[1744746659902,6.24904712,1605.4,1605.2,3.0]
[1744746660327,6.24898747,1605.4,1605.2,3.0]
[1744746660613,6.22936522,1605.3,1605.2,3.0]
[1744746661413,7.01046522,1605.3,1605.2,3.0]
[1744746661582,7.01046522,1605.3,1604.6,0.7776]
[1744746661583,6.23111427,1604.9,1604.6,0.7776]
[1744746661787,6.23000564,1605.2,1604.6,0.7776]
[1744746662198,6.2308497,1605.0,1604.6,0.7776]
[1744746662387,12.46162902,1605.0,1604.6,0.7776]
[1744746662587,6.23225393,1604.6,1604.4,0.7776]
[1744746662790,6.23225393,1604.6,1604.2,1.51100066]
[1744746662791,6.23216355,1604.6,1604.2,1.51100066]
[1744746663031,6.23216355,1604.6,1604.3,0.34736404]
[1744746663412,12.46437618,1604.6,1604.3,0.34736404]
[1744746663731,7.01208016,1604.9,1604.3,0.34736404]
[1744746663892,7.01208016,1604.9,1604.4,0.89736404]
[1744746664274,6.2313435,1604.8,1604.4,0.89736404]
[1744746664523,12.46303141,1604.8,1604.4,0.89736404]
[1744746664827,6.23185134,1604.7,1604.4,0.89736404]
[1744746665191,6.23185134,1604.7,1604.5,0.34736404]
[1744746665616,12.4638065,1604.7,1604.5,0.34736404]
[1744746665819,6.23185134,1604.7,1604.5,0.34736404]
[1744746666156,6.23208276,1604.6,1604.5,0.34736404]
[1744746666802,6.23208276,1604.6,1604.3,0.34736404]
[1744746667007,12.46368709,1604.7,1604.3,0.34736404]
[1744746667203,6.23219368,1604.6,1604.3,0.34736404]
[1744746667508,12.46356357,1604.7,1604.3,0.34736404]
[1744746667874,6.23208473,1604.6,1604.4,3.0]
[1744746668206,6.23179815,1604.7,1604.4,3.3347364]
[1744746668611,6.23238468,1604.6,1604.4,3.3347364]
[1744746668778,6.23238468,1604.6,1604.4,3.0]
[1744746669205,6.23179129,1604.7,1604.4,3.0]
[1744746669410,6.23141594,1604.8,1604.4,3.0]
[1744746669611,6.23179997,1604.7,1604.4,3.0]
[1744746669789,6.23228125,1604.6,1604.4,3.0]
[1744746669989,6.23247117,1604.5,1604.4,3.0]
[1744746670197,6.23247117,1604.5,1604.4,3.34825596]
[1744746670511,6.23228125,1604.6,1604.4,3.34825596]
[1744746670811,12.46459935,1604.6,1604.4,3.3348256]
[1744746671013,12.46459935,1604.6,1604.4,3.0]
[1744746671213,12.46454081,1604.6,1604.4,3.0]
[1744746671390,12.46446994,1604.6,1604.4,3.0]
[1744746671704,6.23222949,1604.6,1604.4,3.0]
[1744746671911,12.4637214,1604.7,1604.4,3.0]
[1744746672112,6.23179347,1604.7,1604.4,3.0]
[1744746672281,6.2322772,1604.6,1604.4,3.0]
[1744746672481,6.23173899,1604.7,1604.4,3.0]
[1744746672913,12.46362516,1604.7,1604.4,3.0]
[1744746673091,6.23208372,1604.6,1604.5,0.34852391]
[1744746673508,6.23173899,1604.7,1604.5,0.34852391]
[1744746673709,12.46379032,1604.7,1604.5,0.34852391]
[1744746673913,6.23103613,1604.9,1604.5,0.34852391]
[1744746674212,6.23054391,1605.0,1604.6,0.8104]
[1744746674410,12.46053612,1605.1,1604.7,0.55]
[1744746674615,6.23117848,1604.9,1604.7,0.34851875]
[1744746675115,6.23130608,1604.8,1604.7,0.34851875]
[1744746675618,6.23105512,1604.9,1604.7,0.34851875]
[1744746675810,12.4621304,1604.9,1604.7,0.34851875]
[1744746676010,6.23105512,1604.9,1604.6,0.8104]
[1744746676316,6.23181293,1604.7,1604.5,0.33485239]
[1744746677213,6.23208276,1604.6,1604.4,6.746]
[1744746677441,0.7825,1604.7,1604.0,6.31825]
[1744746677816,6.23337915,1604.3,1604.0,6.31825]
[1744746677996,6.23294433,1604.4,1604.0,6.31825]
[1744746678319,6.23294433,1604.4,1604.1,0.34863643]
[1744746678489,6.23253917,1604.5,1604.1,1.01532507]
[1744746678681,12.46534698,1604.5,1604.1,1.0776572]
[1744746679112,6.23253917,1604.5,1604.1,1.01532507]
[1744746679322,6.23253917,1604.5,1604.2,0.34863643]
[1744746679522,7.01430582,1604.7,1604.2,0.34863643]
[1744746679711,6.23222815,1604.6,1604.2,1.07977148]
[1744746680020,12.46448483,1604.6,1604.3,0.34863643]
[1744746680215,13.2461346,1604.7,1604.3,0.34863643]
[1744746680421,12.46362833,1604.7,1604.4,0.7621]
[1744746680585,6.23175954,1604.7,1604.4,0.7621]
[1744746681187,6.2318832,1604.7,1604.4,0.7621]
[1744746681391,12.46374385,1604.7,1604.4,0.7621]
[1744746681622,12.46378045,1604.7,1604.4,0.7621]
[1744746682118,6.23217499,1604.6,1604.2,1.3015]
[1744746682424,6.23217499,1604.6,1604.3,0.3485085]
[1744746683012,6.23138111,1604.8,1604.2,0.7515]
[1744746683208,6.23308688,1604.4,1604.2,0.7515]
[1744746683402,6.23308688,1604.4,1604.0,6.31505]
[1744746683604,7.06158276,1604.6,1604.0,12.54928598]
[1744746683605,6.23257712,1604.5,1604.0,12.54928598]
[1744746683793,6.23286347,1604.4,1604.1,0.06233028]
[1744746684010,6.23286347,1604.4,1604.0,6.31505]
[1744746684232,6.23286347,1604.4,1604.1,0.98011521]
[1744746684436,12.46531525,1604.5,1604.1,0.98011521]
[1744746684640,6.23216038,1604.6,1604.1,0.98011521]
[1744746684824,12.46449973,1604.6,1604.2,0.06232521]
[1744746685124,12.46452098,1604.6,1604.3,0.34861021]
[1744746685523,0.8229,1605.1,1604.4,1.3801]
[1744746685722,6.23131996,1604.8,1604.4,1.3801]
[1744746686221,6.23093313,1604.9,1604.4,7.61289775]
[1744746686538,6.23133203,1604.8,1604.4,1.3801]
[1744746687031,12.46138294,1605.0,1604.6,0.55]
[1744746687791,6.23096395,1604.9,1604.6,0.55]
[1744746687990,6.23096395,1604.9,1604.6,0.905]
[1744746688752,6.23065197,1605.0,1604.6,0.905]
[1744746689055,0.02,1605.4,1604.7,0.7581]
[1744746689198,6.24915306,1605.4,1604.8,6.78126471]
[1744746689397,6.22944435,1605.3,1605.1,0.55]
[1744746689608,0.02,1605.4,1605.1,0.55]
[1744746690627,0.02,1605.4,1605.1,13.00993612]
[1744746690829,0.02,1605.4,1605.1,6.77996783]
[1744746691041,0.02,1605.4,1605.2,1.02660699]
[1744746691198,0.02,1605.4,1605.2,7.25632689]
[1744746691400,0.02,1605.4,1605.3,1.3159]
[1744746691837,0.02,1605.4,1605.3,1.66451021]
[1744746692223,0.02,1605.4,1605.3,1.11451021]
[1744746692604,0.02,1605.4,1605.3,1.66451021]
[1744746693120,0.02,1605.4,1605.3,12.97295205]
[1744746693704,0.02,1605.4,1605.3,15.97295205]
[1744746694227,0.02,1605.4,1605.3,5.45392593]
[1744746694537,0.02,1605.4,1605.3,11.68329115]
[1744746694711,0.02,1605.4,1605.3,15.97295205]
[1744746697028,0.02,1605.4,1605.3,16.43048324]
[1744746698940,0.02,1605.4,1605.3,11.59082234]
[1744746699142,0.02,1605.4,1605.3,1.90392593]
[1744746699343,0.02,1605.4,1605.3,0.34861021]
[1744746700041,0.02,1605.4,1605.1,0.55]
[1744746700348,0.02,1605.4,1605.2,6.22973946]
[1744746700644,0.02,1605.4,1605.2,6.22974809]
[1744746700821,0.02,1605.4,1605.2,12.45949618]
[1744746701024,0.02,1605.4,1605.3,1.24594962]
[1744746701224,0.02,1605.4,1605.2,6.22968489]
[1744746701534,0.02,1605.4,1605.2,6.22961872]
[1744746701913,0.02,1605.4,1605.3,0.06228309]
[1744746702313,0.02,1605.4,1605.3,13.39096522]
[1744746702640,0.02,1605.4,1605.3,16.39096522]
[1744746702817,0.02,1605.4,1605.3,18.65302361]
[1744746704336,0.02,1605.4,1605.3,12.42365839]
[1744746704535,0.02,1605.4,1605.3,9.42365839]
[1744746704861,0.02,1605.4,1605.3,6.6116]
[1744746705763,0.02,1605.4,1605.3,6.67388354]
[1744746707142,0.02,1605.4,1605.3,7.22388354]
[1744746707347,0.02,1605.4,1605.3,7.1616]
[1744746707968,0.02,1605.4,1605.3,13.39096522]
[1744746708168,0.02,1605.4,1605.3,22.64267903]
[1744746708466,0.02,1605.4,1605.3,22.98940708]
[1744746711337,0.02,1605.4,1605.3,8.92038096]
[1744746711658,0.02,1605.4,1605.3,8.69878096]
[1744746711970,0.02,1605.4,1605.3,8.14878096]
[1744746712166,0.02,1605.4,1605.3,12.96609327]
[1744746712741,0.02,1605.4,1605.3,21.03775417]
[1744746713470,0.02,1605.4,1605.3,0.89672805]
[1744746713968,0.02,1605.4,1605.3,7.12609327]
[1744746714268,0.02,1605.4,1605.3,0.89672805]
[1744746714466,0.02,1605.4,1605.3,9.04278403]
[1744746714674,0.02,1605.4,1605.3,9.10506311]
[1744746715670,0.02,1605.4,1605.3,9.04278403]
[1744746715840,0.02,1605.4,1605.3,2.81341881]
[1744746716867,0.02,1605.4,1605.3,9.04278403]
[1744746718676,0.02,1605.4,1605.3,2.81341881]
[1744746718874,0.02,1605.4,1605.3,9.04278403]
[1744746719079,0.02,1605.4,1605.3,9.10506317]
[1744746719255,0.02,1605.4,1605.3,12.04278403]
[1744746720472,0.02,1605.4,1605.3,5.81341881]
[1744746720677,0.02,1605.4,1605.3,12.04278403]
[1744746721044,0.02,1605.4,1605.3,12.10506321]
[1744746721679,0.02,1605.4,1605.3,12.04278403]
[1744746722647,0.02,1605.4,1605.3,12.84128403]
[1744746724497,0.02,1605.4,1605.3,12.04278403]
[1744746724699,0.02,1605.4,1605.3,5.81341881]
[1744746725349,0.02,1605.4,1605.3,12.10506148]
[1744746725750,0.02,1605.4,1605.3,12.87038403]
[1744746729171,0.02,1605.4,1605.3,2.26341881]
[1744746729376,0.02,1605.4,1605.3,0.34672805]
[1744746729758,0.02,1605.4,1605.3,0.89672805]
[1744746729955,0.02,1605.4,1605.3,0.55]
[1744746730291,0.02,1605.4,1605.3,3.61228139]
[1744746730459,0.02,1605.4,1605.3,9.84164661]
[1744746730650,0.02,1605.4,1605.3,18.01620858]
[1744746730857,0.02,1605.4,1605.3,11.78684336]
[1744746731185,0.02,1605.4,1605.3,8.1571266]
[1744746731487,0.02,1605.4,1605.3,14.38649182]
[1744746733105,0.02,1605.4,1605.3,8.1571266]
[1744746734984,0.02,1605.4,1605.3,14.38649182]
[1744746735205,0.02,1605.4,1605.3,18.01620858]
[1744746737495,0.02,1605.4,1605.3,18.78370858]
[1744746741278,0.02,1605.4,1605.3,14.60399182]
[1744746741515,0.02,1605.4,1605.3,13.83649182]
[1744746741877,0.02,1605.4,1605.3,14.38649182]
[1744746743926,0.02,1605.4,1605.3,15.16289182]
[1744746753883,0.02,1605.4,1605.3,14.38649182]
[1744746761744,0.02,1605.4,1605.3,15.14689182]
[1744746761925,0.8206,1606.0,1605.9,6.77703779]
[1744746762132,0.8206,1606.0,1605.9,6.83929634]
[1744746763149,0.8206,1606.0,1605.9,1.08192494]
[1744746763323,0.8206,1606.0,1605.9,1.01966639]
[1744746763823,0.8206,1606.0,1605.9,1.08192722]
[1744746764035,0.8206,1606.0,1605.9,2.798547]
[1744746764651,0.7735,1606.2,1606.0,13.00305364]
[1744746764809,0.7735,1606.2,1606.1,6.77626237]
[1744746765452,0.7735,1606.2,1606.1,0.55]
[1744746766469,0.02,1606.4,1606.3,6.77548714]
[1744746766617,0.02,1606.4,1606.3,11.76756293]
[1744746767510,0.02,1606.4,1606.3,14.76756293]
[1744746767721,0.02,1606.4,1606.3,15.51462154]
[1744746768663,0.8255,1606.9,1606.8,0.55]
[1744746768962,0.8255,1606.9,1606.8,1.91194888]
[1744746769118,6.22168618,1607.3,1606.8,8.13549879]
[1744746769318,6.97892768,1607.2,1606.8,8.60044322]
[1744746769619,6.97892768,1607.2,1606.8,8.53820987]
[1744746770377,6.97892768,1607.2,1606.8,8.60042986]
[1744746770533,6.97892768,1607.2,1606.9,0.86004299]
[1744746771433,0.7569,1607.2,1607.0,0.06222]
[1744746771657,0.7569,1607.2,1607.0,6.28477958]
[1744746771857,0.7569,1607.2,1607.0,6.22255958]
[1744746772360,0.8138,1607.4,1607.1,10.4642835]
[1744746772558,0.8138,1607.4,1607.3,0.55]
[1744746773488,0.02,1607.4,1607.3,0.55]
[1744746775604,0.02,1607.4,1607.3,1.00518167]
[1744746776110,0.02,1607.4,1607.3,1.06738625]
[1744746776480,0.02,1607.4,1607.3,4.69710301]
[1744746776816,0.02,1607.4,1607.3,12.87059513]
[1744746778018,0.02,1607.4,1607.3,1.00518167]
[1744746778164,0.02,1607.4,1607.3,1.06738729]
[1744746779056,0.02,1607.4,1607.3,1.00518167]
[1744746779517,6.24122682,1607.4,1607.3,0.45518167]
[1744746779667,6.99322682,1607.4,1607.3,0.45518167]
[1744746780012,0.772,1607.4,1607.2,0.06221211]
[1744746780169,6.9933416,1607.4,1607.1,1.0]
[1744746780368,13.21475318,1607.4,1607.1,1.06221414]
[1744746780567,6.9933416,1607.4,1607.1,1.0]
[1744746780773,6.22167681,1607.3,1607.1,1.0]
[1744746781282,6.98900099,1607.2,1607.1,1.0]
[1744746781706,0.767,1607.2,1607.1,1.0]
[1744746782768,0.767,1607.2,1607.1,1.06221541]
[1744746783398,6.24142593,1607.4,1607.1,1.06221541]
[1744746783568,7.02622593,1607.4,1607.1,1.0]
[1744746784195,0.8048,1607.4,1607.1,1.0]
[1744746784396,7.02605819,1607.4,1607.1,1.0]
[1744746784701,0.8048,1607.4,1607.2,6.2219447]
[1744746784889,0.8048,1607.4,1607.2,0.55]
[1744746785699,0.02,1607.4,1607.2,0.55]
[1744746785905,0.02,1607.4,1607.2,6.77198286]
[1744746786112,0.02,1607.4,1607.2,0.55]
[1744746786268,6.24123928,1607.4,1607.2,0.55]
[1744746786474,7.06523928,1607.4,1607.2,0.55]
[1744746787477,0.844,1607.4,1607.2,0.55]
[1744746788408,0.844,1607.4,1607.2,6.7718688]
[1744746788616,0.844,1607.4,1607.2,6.243]
[1744746788921,7.06546346,1607.4,1607.2,6.243]
[1744746789079,13.28699819,1607.4,1607.2,6.243]
[1744746789282,0.844,1607.4,1607.2,6.243]
[1744746789620,13.28672511,1607.4,1607.2,6.243]
[1744746789790,0.844,1607.4,1607.2,6.243]
[1744746791219,7.06524366,1607.4,1607.2,6.243]
[1744746791794,7.06524366,1607.4,1607.2,12.52699295]
[1744746791795,0.02,1607.4,1607.2,12.52699295]
[1744746791992,0.02,1607.4,1607.2,12.46478187]
[1744746792587,0.02,1607.4,1607.2,14.79646014]
[1744746794220,0.02,1607.4,1607.2,8.57467827]
[1744746794400,6.24122856,1607.4,1607.2,6.243]
[1744746794600,0.02,1607.4,1607.2,6.243]
[1744746794795,0.02,1607.4,1607.2,12.46499205]
[1744746795008,0.02,1607.4,1607.3,0.55]
[1744746796622,0.02,1607.4,1607.3,6.77161388]
[1744746797716,0.02,1607.4,1607.3,8.6402579]
[1744746798224,0.02,1607.4,1607.3,12.26997466]
[1744746798728,0.02,1607.4,1607.3,15.74630432]
[1744746803631,0.02,1607.4,1607.3,16.51740432]
[1744746803821,0.02,1607.4,1607.3,20.41148132]
[1744746804197,0.02,1607.4,1607.3,24.04119808]
[1744746804530,0.02,1607.4,1607.3,20.41148132]
[1744746806623,0.02,1607.4,1607.3,16.51740432]
[1744746807147,0.02,1607.4,1607.3,21.75248732]
[1744746807454,0.02,1607.4,1607.3,18.66510432]
[1744746808137,0.02,1607.4,1607.3,20.88530432]
[1744746808642,0.02,1607.4,1607.3,1.86864402]
[1744746808799,13.29421445,1607.4,1607.1,12.91110961]
[1744746808999,0.8515,1607.4,1607.1,12.91130837]
[1744746809241,0.8515,1607.4,1607.2,0.55]
[1744746809415,7.07283285,1607.4,1607.1,12.91130837]
[1744746809729,7.07283285,1607.4,1607.1,8.90240098]
[1744746809730,6.22163247,1607.3,1607.1,8.90240098]
[1744746809935,6.22163247,1607.3,1607.2,0.55]
[1744746810235,6.22163247,1607.3,1607.1,6.689]
[1744746810438,7.01730099,1607.2,1607.1,1.0]
[1744746810736,7.01730099,1607.2,1607.1,1.55]
[1744746810932,7.01730099,1607.2,1607.1,1.0]
[1744746811911,7.02060099,1607.2,1607.1,1.0]
[1744746812907,0.8328,1606.6,1606.4,6.15467224]
[1744746813106,0.8328,1606.6,1606.4,5.689]
[1744746813327,0.8328,1606.6,1606.4,11.91395456]
[1744746813602,0.8328,1606.6,1606.4,5.689]
[1744746813603,7.05746722,1606.6,1606.4,5.689]
[1744746813829,6.22524805,1606.4,1606.1,9.31971676]
[1744746814006,0.8328,1606.3,1606.1,5.69]
[1744746814203,7.05842343,1606.3,1606.1,5.69]
[1744746814410,0.8328,1606.3,1606.0,3.0]
[1744746814632,7.05840054,1606.3,1606.0,9.22653605]
[1744746815349,7.05840054,1606.3,1606.1,0.55]
[1744746815840,0.8328,1606.3,1606.1,0.0622546]
[1744746816141,0.8328,1606.3,1606.1,6.77621353]
[1744746816342,0.8328,1606.3,1606.1,0.55]
[1744746817039,7.05840301,1606.3,1606.1,0.55]
[1744746817364,6.22587473,1606.2,1606.1,0.55]
[1744746817531,12.45201432,1606.2,1605.9,58.28507029]
[1744746817734,12.45194327,1606.2,1605.9,58.28507029]
[1744746818085,12.45194327,1606.2,1606.0,0.55]
[1744746818537,6.22719745,1605.9,1605.6,9.85790159]
[1744746818747,6.99777274,1606.0,1605.7,6.28992384]
[1744746818927,6.99777274,1606.0,1605.8,0.55]
[1744746819978,0.8179,1606.2,1606.0,0.55]
[1744746820137,0.8179,1606.2,1606.0,4.17971676]
[1744746820336,0.8179,1606.2,1606.1,0.06225541]
[1744746820571,0.8179,1606.2,1606.0,10.4063174]
[1744746820772,7.0430423,1606.4,1606.0,12.63872599]
[1744746820973,7.0430423,1606.4,1606.1,6.22608013]
[1744746821333,0.8179,1606.4,1606.0,6.4122401]
[1744746821667,7.04307085,1606.4,1606.1,6.77602855]
[1744746821969,13.26834887,1606.4,1606.1,6.77602855]
[1744746822370,13.26835163,1606.4,1606.1,6.77602855]
[1744746822570,0.8179,1606.4,1606.2,6.22575929]
[1744746824170,0.8179,1606.4,1606.0,12.8562114]
[1744746824370,7.04338192,1606.4,1606.0,12.8562114]
[1744746824577,7.04317851,1606.4,1606.1,6.22626217]
[1744746824776,0.8179,1606.4,1606.1,6.22626217]
[1744746825397,7.04308296,1606.4,1606.1,12.45239285]
[1744746825551,0.8179,1606.4,1606.1,12.45239285]
[1744746825960,0.8179,1606.4,1606.3,6.22548714]
[1744746826667,0.8136,1606.6,1606.4,6.22501903]
[1744746827074,7.03795017,1606.6,1606.3,6.22548714]
[1744746828589,0.8136,1606.6,1606.3,12.45086623]
[1744746828893,7.03795335,1606.6,1606.3,6.22537909]
[1744746829255,7.03795335,1606.6,1606.3,12.45075818]
[1744746829460,7.03795335,1606.6,1606.3,6.22537243]
[1744746830189,7.05802409,1606.4,1606.1,6.77605646]
[1744746830493,7.05802409,1606.4,1606.1,13.00219354]
[1744746830695,0.8328,1606.4,1606.1,13.00218065]
[1744746830874,0.8328,1606.4,1606.2,6.22585549]
[1744746831075,0.8328,1606.4,1606.2,12.4515972]
[1744746831465,0.8328,1606.4,1606.3,6.22548714]
[1744746833192,52.96744816,1607.4,1606.3,6.22548714]
[1744746833193,0.8303,1606.8,1606.6,6.22429732]
[1744746833496,0.8303,1606.8,1606.3,18.23710922]
[1744746833497,6.22405573,1606.7,1606.4,6.22500986]
[1744746833963,12.4482963,1606.7,1606.4,6.22500986]
[1744746835424,0.7701,1606.5,1606.4,0.55]
[1744746836995,0.7701,1606.5,1606.4,3.55]
[1744746837196,0.8149,1606.6,1606.4,3.55]